Workbook

Sheet Pradžia
A2: Darbo su formulėmis pradžia
A3: Vos keliais veiksmais pradėsite kurti formules ir funkcijas „Excel“, efektyviausioje pasaulyje skaičiuoklės programoje.
A4: Grįžkite į viršų paspaudę CTRL + HOME. Norėdami pradėti apžvalgą, paspauskite CTRL + PAGE DOWN.

Sheet Pagrindai
A1: Pagrindai: matematiniai skaičiavimai naudojant „Excel“
A2: Naudodami „Excel“ galite pridėti, atimti, dauginti ir dalyti nenaudodami jokių įtaisytųjų funkcijų. Tiesiog turite naudoti keletą paprastų operatorių: +, -, *, /. Visos formulės pradedamos lygybės (=) ženklu. | C2: Naudotini skaičiai: | E2: Operacija: | F2: Formulės: | G2: Atsakymai:
A3: Norėdami pridėti, pažymėkite langelį F3, įveskite =C3+C4 ir paspauskite Enter. | C3: 1 | E3: Sudėtis (+) | G3: =C3+C4 -> 3
A4: Norėdami atimti, pažymėkite langelį F4, įveskite =C3-C4 ir paspauskite Enter. | C4: 2 | E4: Atimtis (-) | G4: =C3-C4 -> -1
A5: Norėdami sudauginti, pažymėkite langelį F5, įveskite =C3*C4 ir paspauskite Enter. | E5: Daugyba (*) | G5: =C3*C4 -> 2
A6: Norėdami padalyti, pažymėkite langelį F6, įveskite =C3/C4 ir paspauskite Enter. | E6: Dalyba (/) | G6: =C3/C4 -> 0.5
A7: Pabandykite: pakeiskite skaičius langeliuose C3 ir C4 ir stebėkite, kaip automatiškai keičiasi formulės rezultatai. | E7: Laipsnis (^) | G7: =C3^C4 -> 1
A8: PAPILDOMA UŽDUOTIS: Galite pakelti reikšmę laipsniu naudodami karato (^) simbolį, pvz., =A1^A2. Jis įvedamas paspaudus Shift + 6. Langelyje F7 įveskite =C3^C4.
A9: Daugiau informacijos sužinosite išanalizavę išsamiau
A10: Kitas veiksmas
A11: Daugiau apie formules, langelius ir diapazonus
A12: „Excel“ sudaryta iš atskirų langelių, kurie sugrupuoti į eilutes ir stulpelius. Eilutės pažymėtos skaičiais, o stulpeliai – raidėmis. Yra daugiau nei 1 milijonas eilučių ir 16 000 stulpelių; galite įvesti formules ir funkcijas į bet kurį iš jų.
A13: Formulėse gali būti langelių koordinatės, langelių koordinačių diapazonai, operatoriai ir konstantos. Štai įvairūs formulių pavyzdžiai: =A1+B1 =10+20 =SUM(A1:A10)
A14: Turbūt pastebėjote, kad trečiajame pavyzdyje naudojome funkciją SUM. Funkcija yra iš anksto sukurta komanda, kuri gauna reikšmę arba reikšmes, tam tikru būdu jas apskaičiuoja ir pateikia rezultatą. Pavyzdžiui, funkcija SUM gauna jūsų nurodytas langelių koordinates arba diapazonus ir juos susumuoja. Šiame pavyzdyje ji gauna langelius nuo A1 iki A10 ir juos susumuoja. Programoje „Excel“ yra daugiau nei 400 funkcijų, kurias galite peržiūrėti skirtuke Formulės.
A15: Formulės, kuriose yra funkcijų, pradedamos lygybės ženklu, tada yra funkcijos pavadinimas su savo argumentais (reikšmės, kurias funkcija naudoja apskaičiuoti) skliausteliuose.
A16: Formulė patvirtinama paspaudus Enter. Tai padarius, formulė atliks skaičiavimą ir langelyje bus rodomas rezultatas. Norėdami pamatyti pačią formulę, galite pažiūrėti į formulės juostą, esančią žemiau juostelės, arba paspaudę F2 įjunkite redagavimo režimą ir langelyje pamatysite formulę. Dar kartą paspauskite Enter, kad užbaigtumėte formulę ir apskaičiuotumėte rezultatą.
A17: Kai kurie formulių paaiškinimai
A18: =10+20 yra formulė, kur 10 ir 20 yra konstantos, o + simbolis yra operatorius.
A19: =SUM(A1:A10) yra formulė, kur SUM yra funkcijos pavadinimas, tarp atidarančiųjų ir uždarančiųjų skliaustelių yra argumentai, o A1:A10 yra funkcijos langelių diapazonas.
A20: =SUM(A1:A10;C1:C10) yra formulė, kur SUM yra funkcijos pavadinimas, tarp atidarančiųjų ir uždarančiųjų skliaustelių yra argumentai, o A1:A10;C1:C10 yra funkcijos langelių diapazonai, atskirti kableliu.
A21: NAUDINGA ŽINOTI: Konstantos yra reikšmės, kurias įvedate į langelius arba formules. Nors =10+20 skaičiavimo rezultatas gali būti toks pats kaip ir =A1+B1, šitaip naudoti konstantų nerekomenduojama. Kodėl? Nes negalite lengvai pamatyti konstantų nepažymint langelio ir jos neieškant. Todėl gali būti sunku jas vėliau pakeisti. Daug paprasčiau konstantas įvesti langeliuose, kur jas galima lengvai koreguoti ir nurodyti formulėse. Pavyzdžiui: Pažymėkite žemiau esantį geltoną langelį, kuriame yra skaičius 12. Pamatysite, kad panaudojome funkciją SUM ir langelių diapazoną. Į formulę tiesiogiai neįvedėme „4“ ar „8“.
A22: Atgal
A23: Pirmyn
A24: Daugiau informacijos rasite žiniatinklyje
A25: „Excel“ naudojimas kaip skaičiuoklės
A26: „Excel“ formulių apžvalga
A27: „Excel“ funkcijos (pagal kategoriją)
A28: „Excel“ funkcijos (pagal abėcėlę)
A29: Nemokamas internetinis „Excel“ mokymas
J40: Reikšmės
J41: 4
J42: 8
J43: =SUM(J41:J42) -> 12

Sheet Įvadas į funkcijas
A1: Įvadas į funkcijas
A2: Funkcijos suteikia galimybę atlikti įvairių dalykų, pvz., atlikti matematines operacijas, ieškoti reikšmių ar net skaičiuoti datą ir laiką. Pabandykime keletą būdų sudėti reikšmės naudojant funkciją SUM. | C2: Vaisiai | D2: Suma | F2: Mėsa | G2: Suma
A3: Po vaisių kiekio stulpelio (langelis D7) įveskite =SUM(D3:D6) arba surinkite =SUM(, tada pele pažymėkite tą diapazoną ir paspauskite Enter. Bus susumuotos reikšmės langeliuose D3, D4, D5 ir D6. Atsakymas turėtų būti 170. | C3: Obuoliai | D3: 50 | F3: Jautiena | G3: 50
A4: Dabar pabandykime Automatinė sudėtis. Pažymėkite geltoną langelį po mėsos stulpeliu (langelis G7), tada eikite į Formulės > Automatinė sudėtis > pasirinkite SUM. Matysite, kaip „Excel“ automatiškai įves formulę už jus. Patvirtinkite ją paspaudę Enter. Automatinės sudėties priemonėje yra visos dažniausiai naudojamos funkcijos. | C4: Apelsinai | D4: 20 | F4: Vištiena | G4: 30
A5: Štai naudingas spartusis klavišas. Pažymėkite langelį D15, tada paspauskite Alt =, tada Enter. SUM bus automatiškai įvesta už jus. | C5: Bananai | D5: 60 | F5: Kiauliena | G5: 10
A6: Daugiau informacijos sužinosite išanalizavę išsamiau | C6: Citrinos | D6: 40 | F6: Žuvis | G6: 50
A7: PAPILDOMA UŽDUOTIS Pabandykite funkciją COUNT naudodami bet kurį iš jau išbandytų metodų. Funkcija COUNT suskaičiuoja diapazone esančių langelių, kuriuose yra skaičių, kiekį. | C7: SUM > | D7: =SUM(D3:D6) -> 170 | F7: SUM >
A8: Kitas veiksmas
A9: Daugiau informacijos apie funkcijas | C9: Prekė | D9: Suma | F9: Prekė | G9: Suma
A10: Eikite į skirtuką Formulės ir naršykite funkcijų biblioteką, kur funkcijos pateikiamos pagal kategoriją, pvz., Tekstas, Data ir laikas ir kt. Parinktis Įterpti funkciją leis ieškoti funkcijų pagal pavadinimą ir paleis vedlį, kuris gali padėti sukurti jūsų formulę. Kai paspaudę = pradėsite rinkti funkcijos pavadinimą, „Excel“ paleis „IntelliSense“, kuri pateiks visas funkcijas, kurių pavadinimai prasideda jūsų įvestomis raidėmis. Radę norimą, paspauskite Tab ir „Excel“ automatiškai užbaigs funkcijos pavadinimą ir įves atidarančiąsias kabutes už jus. Bus taip pat rodomi pasirinktiniai ir privalomi argumentai. Dabar paanalizuokime kelias funkcijas. Funkcijos SUM struktūra yra tokia: | C10: Duona | D10: 50 | F10: Duona | G10: 50
A11: Jei funkcija SUM galėtų prabilti, ji pasakytų „grąžinkime visų langeliuose nuo D35 iki D38 esančių reikšmių sumą ir visą stulpelį H. SUM yra funkcijos pavadinimas, D35:D38 yra pirmojo diapazono argumentas, kuris beveik visada būtinas, o H:H yra antrojo diapazono argumentas, atskiras kableliu. Pabandykime funkciją, kuriai nebūtini jokie argumentai. | C11: Spurgos | D11: 100 | F11: Spurgos | G11: 100
A12: Funkcija TODAY grąžina šiandienos datą. Ji automatiškai atnaujinama, kai „Excel“ perskaičiuoja. | C12: Sausainiai | D12: 40 | F12: Sausainiai | G12: 40
A13: PERŽIŪRĖKITE TAI Pažymėkite šiuos langelius. Tada „Excel“ lango apatiniame dešiniajame kampe ieškokite SUM: 170 apatinėje juostoje. Tai vadinama būsenos juosta. Tai dar vienas būdas greiti rasti sumą ir kitą informaciją apie pažymėtą langelį arba diapazoną. | C13: Tortai | D13: 50 | F13: Tortai | G13: 50
A14: SVARBI INFORMACIJA Dukart spustelėkite šį langelį. Pabaigoje pastebėsite skaičių 100. Į formulę galima įtraukti skaičius tokiu būdu, tačiau to nerekomenduojame, nebent tai būtina. Tai vadinama konstanta ir lengva pamiršti, kad skaičius ten yra. Vietoj to, rekomenduojame sukurti nuoroda į kitą langelį, pvz., F51. Tokiu būdu skaičius yra lengvai pastebimas ir nepaslėptas formulėje. | C14: Pyragai | D14: 20 | F14: Pyragai | G14: 20
A15: Daugiau informacijos rasite žiniatinklyje | C15: SUM > | F15: COUNT >
A16: Viskas apie funkciją SUM
A17: Automatinės sudėties naudojimas skaičiams sudėti
A18: Viskas apie funkciją COUNT
A19: Nemokamas internetinis „Excel“ mokymas
A20: Atgal į viršų
A21: Kitas veiksmas
C34: Vaisiai | D34: Suma
C35: Obuoliai | D35: 50
C36: Apelsinai | D36: 20
C37: Bananai | D37: 60
C38: Citrinos | D38: 40
C39: SUM > | D39: =SUM(D35:D38) -> 170
C44: Prekė | D44: Suma
C45: Automobiliai | D45: 20
C46: Sunkvežimiai | D46: 10
C47: Dviračiai | D47: 10
C48: Pačiūžos | D48: 40
D50: Iš viso: | F50: Papildoma reikšmė | G50: Nauja suma
D51: =SUM(D45:D48,100) -> 180 | F51: 100 | G51: =SUM(D45:D48,F51) -> 180

Sheet AVERAGE
A1: Funkcija AVERAGE
A2: Naudokite funkciją AVERAGE, kai norite gauti langelių diapazone esančių skaičių vidurkį. | C2: Vaisiai | D2: Kiekis | F2: Mėsa | G2: Kiekis
A3: Pažymėkite langelį D7, tada naudodami Automatinė sudėtis įtraukite funkciją AVERAGE. | C3: Obuoliai | D3: 50 | F3: Jautiena | G3: 50
A4: Dabar pažymėkite langelį G7 ir įveskite funkciją AVERAGE surinkdami =AVERAGE(G3:G6). | C4: Apelsinai | D4: 20 | F4: Vištiena | G4: 30
A5: Langelyje D15 galite arba naudoti Automatinė sudėtis, arba rinkdami tekstą įvesti kitą AVERAGE funkciją. | C5: Bananai | D5: 60 | F5: Kiauliena | G5: 10
A6: PERŽIŪRĖKITE TAI Pažymėkite bet kokį skaičių diapazoną, tada pažvelgę į būsenos juostą pamatysite momentinį vidurkį. | C6: Citrinos | D6: 40 | F6: Žuvis | G6: 50
A7: Suaktyvinti ankstesnį lapą | C7: AVERAGE > | F7: AVERAGE >
A8: Pereiti į paskesnį lapą
A9: PAPILDOMA UŽDUOTIS Pabandykite čia naudoti MEDIAN arba MODE. MEDIAN pateikia duomenų rinkinio vidurio reikšmę, o MODE pateikia dažniausiai pasitaikančią reikšmę. | C9: Prekė | D9: Kiekis | F9: Prekė | G9: Kiekis
A10: Saitai, skirti rasti daugiau informacijos žiniatinklyje | C10: Duona | D10: 50 | F10: Duona | G10: 50
A11: Pasirinkite norėdami žiniatinklyje sužinoti viską apie funkciją AVERAGE | C11: Spurgos | D11: 100 | F11: Spurgos | G11: 100
A12: Pasirinkite norėdami žiniatinklyje sužinoti viską apie funkciją MEDIAN | C12: Sausainiai | D12: 40 | F12: Sausainiai | G12: 40
A13: Pasirinkite norėdami žiniatinklyje sužinoti viską apie funkciją MODE | C13: Tortai | D13: 50 | F13: Tortai | G13: 50
A14: Pasirinkite norėdami sužinoti apie nemokamą internetinį „Excel“ mokymą | C14: Pyragai | D14: 20 | F14: Pyragai | G14: 20
C15: AVERAGE >

Sheet MIN ir MAX
A1: Funkcijos MIN ir MAX
A2: Naudokite funkciją MIN, kai norite gauti langelių diapazone esantį mažiausią skaičių. | C2: Vaisiai | D2: Kiekis | F2: Mėsa | G2: Kiekis
A3: Naudokite funkciją MAX, kai norite gauti langelių diapazone esantį didžiausią skaičių. | C3: Obuoliai | D3: 50 | F3: Jautiena | G3: 50
A4: Pažymėkite langelį D7, tada naudodami automatinės sudėties vedlį įtraukite funkciją MIN. | C4: Apelsinai | D4: 20 | F4: Vištiena | G4: 30
A5: Dabar pažymėkite langelį G7 ir įveskite funkciją MAX surinkdami =MAX(D3:D6). | C5: Bananai | D5: 60 | F5: Kiauliena | G5: 10
A6: Langelyje D15 galite arba naudoti automatinės sudėties vedlį, arba rinkdami įvesti MIN arba MAX funkciją. | C6: Citrinos | D6: 40 | F6: Žuvis | G6: 50
A7: Daugiau informacijos rasite žiniatinklyje | C7: MIN > | F7: MAX >
A8: Viskas apie funkciją MIN
A9: Viskas apie funkciją MAX | C9: Prekė | D9: Kiekis | F9: Prekė | G9: Kiekis
A10: Nemokamas internetinis „Excel“ mokymas | C10: Duona | D10: 50 | F10: Duona | G10: 50
A11: NAUDINGA ŽINOTI Galite naudoti MIN arba MAX su keliais diapazonais arba reikšmėmis, kad už tas reikšmes būtų parodyta didesnė arba mažesnė reikšmė, pvz., =MIN(A1:A10,B1:B10) arba =MAX(A1:A10,B1), kur langelyje B1 yra ribinė reikšmė, pvz., 10. Tokiu atveju formulė niekada negrąžins rezultato, mažesnio nei 10. | C11: Spurgos | D11: 100 | F11: Spurgos | G11: 100
C12: Sausainiai | D12: 40 | F12: Sausainiai | G12: 40
C13: Tortai | D13: 50 | F13: Tortai | G13: 50
C14: Pyragai | D14: 20 | F14: Pyragai | G14: 20
C15: MIN arba MAX > | G15: =MIN(G10:G14,10) -> 10

Sheet Data ir laikas
A1: Datos funkcijos
A2: „Excel“ gali pateikti dabartinę datą pagal jūsų kompiuterio regiono parametrus. Taip pat galite pridėti arba atimti datas.
A3: Išbandykite funkciją TODAY, kuri pateikia šiandienos datą. Tai yra tiesioginės, arba kintamos, funkcijos, todėl atidarius darbaknygę rytoj, joje bus rytojaus data. Langelyje D6 įveskite =TODAY().
A4: Datų atėmimas. Įveskite savo ateinančią gimimo dieną YYYY-MM-DD formatu langelyje D7, tada langelyje D8 įveskite =D7-D6 ir stebėkite, kaip „Excel“ nurodys jums, kiek liko dienų.
A5: Datų įtraukimas. Tarkime, kad norite žinoti sąskaitos apmokėjimo terminą arba kada į biblioteką turite grąžinti knygą. Norėdami tai sužinoti, galite prie datos pridėti dienų. Langelyje D10 įveskite bet kokį dienų skaičių. Langelyje D11 įtraukėme=D6+D10, kad apskaičiuotume terminą pagal šiandienos datą. | C5: Datos funkcijos
A6: NAUDINGA ŽINOTI „Excel“ įrašo datą ir laiką pagal dienų skaičių, kuris pradedamas skaičiuoti nuo 1990 m. sausio 1 d. Laikas įrašomas trupmeninėmis dienos dalimis pagal minutes. Taigi 2017.01.01 12:30 iš tiesų įrašoma kaip 42736,5208. Jei laikas arba data rodomi šitaip, galite paspausti Ctrl + 1 > Skaičius > pasirinkite datos arba laiko formatą. | C6: Šiandienos data: | F6: =IF(D6=TODAY(),"Jums pavyko!","") -> 
A7: SVARBI INFORMACIJA Jei nenorite, kad „Excel“ rodytų neigiamą skaičių, nes dar neįvedėte savo gimtadienio, galite naudoti tokią IF funkciją: =IF(D7="";"";D7-D6), kuri sako: „Jei D7 lygu niekam, tada nieko nerodyti, kitu atveju rodyti D7 minus D6“. | C7: Jūsų gimimo diena:
A8: Laiko funkcijos | C8: Dienos iki gimimo dienos: | D8: =D7-D6 -> 0
A9: „Excel“ gali pateikti dabartinį laiką pagal jūsų kompiuterio regiono parametrus. Taip pat galite pridėti arba atimti laiką. Pavyzdžiui, galbūt norite sekti, kiek valandų darbuotojas dirbo kiekvieną savaitę, ir apskaičiuoti jų darbo užmokestį ir viršvalandžius.
A10: Langelyje D28 įveskite =NOW() ir bus pateiktas dabartinis laikas, kuris bus atnaujintas kaskart, kai „Excel“ skaičiuoja. Jei norite pakeisti laiko formatą, spauskite Ctrl + 1 > Skaičius > Laikas > pasirinkite norimą formatą. | C10: Atidėjimo laikotarpis dienomis:
A11: Valandų pridėjimas prie laiko. Langelyje D36 įvedėme =((D35-D32)-(D34-D33))*24. Taip apskaičiuojamas kažkieno darbo pradžios ir pabaigos laikas, tada atimamas laikas, kurį jie praleido pietaudami. Formulės pabaigoje esantis skaičius 24 konvertuoja „Excel“ matomą dienos trupmeninę dalį į valandas. Vis dėlto turėsite suformatuoti langelį kaip Skaičius. Norėdami tai padaryti, eikite į Pagrindinis > Formatuoti > Langeliai (Ctrl + 1) > Skaičius > Skaičius > 2 skaičiai po kablelio. | C11: Sąskaitos mokėjimo terminas: | D11: =D6+D10 -> 00:00:00
A12: Jei ši formulė galėtų kalbėti, ji pasakytų: „Paimkime pabaigos laiką ir iš jo atimkime pradžios laiką, tada atimkime pietų pradžios / pabaigos laiką, tada viską padauginkime iš 24, kad konvertuotume „Excel“ trupmeninį laiką į valandas“ arba =((Darbo pradžia - Darbo pabaiga)-(Pietų pradžia - Pietų pabaiga))*24.
A13: Atgal
A14: Pirmyn
A15: Daugiau informacijos rasite žiniatinklyje
A16: Viskas apie funkciją TODAY
A17: Viskas apie funkciją NOW
A18: Viskas apie funkciją DATE
A19: Nemokamas internetinis „Excel“ mokymas
C27: Laiko funkcijos
C28: Dabartinis laikas:
C31: Dienos dirbtų valandų skaičius
C32: Darbo pradžia: | D32: 08:00:00
C33: Pietų pabaiga: | D33: 12:00:00
C34: Pietų pradžia: | D34: 13:00:00
C35: Darbo pabaiga: | D35: 17:00:00
C36: Bendrasis valandų skaičius: | D36: =((D35-D32)-(D34-D33))*24 -> 8
C45: Statinė data ir laikas
C46: Data: | D46: 2017-09-27
C47: Laikas: | D47: 08:52:00

Sheet Teksto ir skaičių jungimas
A1: Skirtingų langelių teksto jungimas
A2: Dažnai būna, kad dirbant programa „Excel“ reikia sujungti tekstą, esantį skirtinguose langeliuose. Labai dažnas pavyzdys yra, kai turite vardą ir pavardę atskirai ir norite juos sujungti, kad būtų vardas, pavardė arba vardas ir pavardė. Laimei, „Excel“ leidžia tai atlikti naudojant & ženklą, kurį galite įvesti paspaudę Shift + 7. | C2: Vardas | D2: Pavardė | E2: Pavardė, vardas | F2: Vardas ir pavardė
A3: Langelyje E3 įveskite =D3&C3, kad sujungtumėte vardą ir pavardę. | C3: Miglė | D3: Bočkutė | E3: =D3&", "&C3 -> Bočkutė, Miglė | F3: =C3&" "&D3 -> Miglė Bočkutė
A4: BočkutėMiglė neatrodo teisingai. Reikia įtraukti kablelį ir tarpą. Norėdami tai padaryti, naudosime kabutes ir naują teksto eilutę. Šįkart įveskite =D3&", "&C3. Dalis &", "& leidžia sujungti kablelį ir tarpą su tekstu langeliuose. | C4: Linas | D4: Petkus
A5: Norėdami sukurti vardą ir pavardę, sujungsime atskirus vardą ir pavardę, bet naudosime tarpą be kablelio. Langelyje F3 įveskite =C3&" "&D3. | C5: Jonas | D5: Adomavičius
A6: Daugiau informacijos sužinosite išanalizavę išsamiau | C6: Marija | D6: Saulėnaitė
A7: Pirmyn | C7: Rimas | D7: Linkus
A8: Teksto ir skaičių naudojimas kartu | C8: Mykolas | D8: Antanaitis
A9: Dabar naudosime &, kad sujungtume tekstą su skaičiais, ne tik tekstą su tekstu Pažiūrėkite į langelius C28:D29. Pamatysite, kad data ir laikas yra atskiruose langeliuose. Galite juos sujungti naudodami & ženklą, kaip langeliuose C32:C33, bet tai neatrodo gerai, ar ne? Deja, „Excel“ nežino, kaip norite formatuoti skaičius, todėl juos pateikia paprasčiausiu formatu, kuris šiuo atveju yra datų seka. Reikia aiškia nurodyti „Excel“, kaip formatuoti formulės skaitinę dalį, kad gaunamoje teksto eilutėje ji būtų rodoma taip, kaip norite. Tai galite padaryti naudodami funkciją TEXT ir formato kodą. | C9: Robertas | D9: Zinkus
A10: Langelyje C36 įveskite =C28&" "&TEXT(D28,"YYYY-MM-DD"). YYYY-MM-DD yra JAV formato kodas, kuris reiškia Metai-Mėnesis-Diena, pvz., 2017-09-25. | C10: Emilija | D10: Butkutė
A11: Langelyje C37 įveskite =C29&" "&TEXT(D29,"HH:MM"). HH:MM yra JAV formato kodas, kuris reiškia Valandos:Minutės AM (iki vidurdienio) arba PM (po vidurdienio), pvz., 1:30 PM.
A12: PERŽIŪRĖKITE TAI Formules, ypač ilgas, kartais gali būti sunku skaityti, bet galite jas išskaidyti dalimis naudodami tarpus maždaug taip: =C28 & " " & TEXT(D28,"YYYY-MM-DD")
A13: VERTA PERŽIŪRĖTI Jei nežinote, kokį formato kodą naudoti, galite naudoti Ctrl + 1 > Skaičius, kad suformatuotumėte bet kokį langelį norimu būdu. Tada pasirinkite parinktį Pasirinktinis. Galite nukopijuoti rodomą formato kodą į savo formulę.
A14: Daugiau informacijos rasite žiniatinklyje
A15: Viskas apie funkciją TEXT
A16: Teksto ir skaičių jungimas
A17: Nemokamas internetinis „Excel“ mokymas
C27: Teksto ir skaičių naudojimas
C28: Šiandienos data: | D28: =TODAY() -> 2021-10-19
C29: Dabartinis laikas: | D29: =NOW() -> 44488.43511
C31: Teksto ir skaičių jungimas
C32: =C28&" "&D28 -> Šiandienos data: 44488
C33: =C29&" "&D29 -> Dabartinis laikas: 44488.4351076389
C35: Teksto ir skaičių formatavimas
C36: =C28 &" "& TEXT(D28,"YYYY-MM-DD") -> Šiandienos data: 2021-10-19
C37: =C29&" "&TEXT(D29,"HH:MM") -> Dabartinis laikas: 10:26

Sheet IF sakiniai
A1: IF sakiniai
A2: IF sakiniai leidžia atlikti loginius sąlygų palyginimus. IF sakinys paprastai nurodo, kad jei viena sąlyga yra teisinga, reikia kažką daryti; kitu atveju reikia daryti kažką kitą. Formulės gali grąžinti tekstą, reikšmes ar dar daugiau skaičiavimų.
A3: Langelyje D9 įveskite =IF(C9="Obuolys";TRUE;FALSE). Teisingas atsakymas yra TRUE (teisinga).
A4: Nukopijuokite D9 į D10. Čia atsakymas turėtų būti FALSE (neteisinga), nes apelsinas nėra obuolys.
A5: Pabandykime kitą pavyzdį, pažvelgdami į langelyje C12 esančią formulę. Langelyje jau įvesta =IF(C12<100;"Mažiau nei 100";"Daugiau arba lygu 100"). Kas nutiks, jei langelyje C12 įvesite skaičių, didesnį nei 100?
A6: SVARBI IŠSAMI INFORMACIJA TRUE ir FALSE yra nepanašūs į kitus „Excel“ formulių žodžius tuo, kad jų nereikia rašyti kabutėse, o „Excel“ juos automatiškai pavers didžiosiomis raidėmis. Skaičių taip pat nereikia rašyti kabutėse. Paprastą tekstą, pvz., Taip arba Ne, reikia rašyti kabutėse, kaip čia: =IF(C9="Obuolys";"Taip";"Ne")
A7: Daugiau informacijos sužinosite išanalizavę išsamiau
A8: Pirmyn | C8: IF sakiniai
A9: IF sakinys kartu su kita funkcija | C9: Obuolys
A10: IF sakiniai taip pat gali padaryti, kad būtų atlikti papildomi skaičiavimai, jei patenkinama tam tikra sąlyga. Šiame pavyzdyje įvertinsime langelio reikšmę, kad sužinotume, ar reikia taikyti pardavimo mokestį, ir, jei sąlyga teisinga, jį apskaičiuosime. | C10: Apelsinas
A11: Langelyje F33 įvedėme =IF(E33="Taip";F31*PardavimųMokestis;0); nustatėme PardavimųMokestis kaip įvardytąjį diapazoną, kurio reikšmė 0,0825. Mūsų formulė nurodo, kad jei langelis E33 lygus Taip, tai langelį F31 reikia padauginti iš PardavimųMokestis, kitu atveju grąžinti 0. Langelyje E33 pabandykite pakeisti Taip į Ne, kad pamatytumėte, ar skaičiavimas pasikeis.
A12: Tada įtraukėme IF sakinį, kad nustatytume, ar būtinas siuntimas. Langelyje F35 pamatysite =IF(E35="Taip";SUM(D28:D29)*1,25;0). Jame nurodoma: „Jei langelio E35 reikšmė Taip, paimkime stulpelio Kiekis, esančio lentelėje aukščiau, sumą ir padauginkime ją iš 1,25, kitu atveju grąžinkime 0“. | C12: 50 | D12: =IF(C12<100,"Mažiau nei 100","Mažiau nei 100") -> Mažiau nei 100
A13: Tada langelyje F35 esančioje formulėje pakeiskite 1,25 į „Pristatymas“. Pradėjus vesti tekstą, „Excel“ automatinio taisymo funkcija turėtų jį rasti. Kai ras, paspauskite Tab ir tekstas bus įvestas. Tai įvardytasis diapazonas, kurį įvedėme iš dalies Formulės > Apibrėžti pavadinimą. Jei jums kada nors reiktų pakeisti siuntimo išlaidas, tai padaryti reikės tik vienoje vietoje, pavadinimą „Siuntimas“ galite naudoti bet kurioje darbaknygės vietoje.
A14: NAUDINGA ŽINOTI Kai sukuriate formulę, „Excel“ automatiškai sukuria spalvotas kraštines aplink visus formulėje nurodytus diapazonus; atitinkami formulėje esantys diapazonai bus tos pačios spalvos. Galite pamatyti, kaip tai veikia, jei pažymėsite langelį F33 ir paspausite F2, kad galėtumėte redaguoti formulę.
A15: SPECIALISTO PATARIMAS Įvardytieji diapazonai leidžia apibrėžti sąvokas arba reikšmes vienoje vietoje, o tada jas pakartotinai naudoti visoje darbaknygėje. Visus šioje darbaknygėje esančius įvardytuosius diapazonus galite pamatyti paspaudę Formulės > Pavadinimų tvarkytuvas. Spustelėkite čia ir sužinokite daugiau.
A16: Atgal
A17: Pirmyn
A18: Daugiau informacijos rasite žiniatinklyje
A19: Viskas apie funkciją IF
A20: Viskas apie funkciją IFS
A21: Išplėstiniai IF sakiniai
A22: Nemokamas internetinis „Excel“ mokymas
C27: Prekė | D27: Kiekis | E27: Kaina | F27: Iš viso
C28: Įtaisas | D28: 2 | E28: 9.76 EUR | F28: ='IF sakiniai'!$E$28:$E$29*'IF sakiniai'!$D$28:$D$29 -> 19.52 EUR
C29: Reikmuo | D29: 3 | E29: 3.42 EUR | F29: ='IF sakiniai'!$E$28:$E$29*'IF sakiniai'!$D$28:$D$29 -> 10.26 EUR
D31: Tarpinė suma | E31: =SUM('IF sakiniai'!$E$28:$E$29) -> 13.18 EUR | F31: =SUM('IF sakiniai'!F28:F29) -> 29.78 EUR
D33: Pardavimo mokestis? | E33: Taip | F33: =IF(E33="Taip",F31*PardavimoMokestis,0) -> 2.46 EUR
D35: Pristatymas? | E35: Taip | F35: =IF(E35="Taip",SUM(D28:D29)*1.25,0) -> 6.25 EUR
D37: Iš viso | F37: =SUM(F33,F31,F35) -> 38.48 EUR

Sheet VLOOKUP
A1: VLOOKUP
A2: VLOOKUP yra viena dažniausiai naudojamų „Excel“ funkcijų (taip pat ir viena iš mūsų mėgstamiausių!). VLOOKUP leidžia ieškoti reikšmės stulpelyje kairėje, tada, jei randa atitikmenį, pateikia informaciją kitame stulpelyje dešinėje. VLOOKUP sako:
A3: =VLOOKUP(A1;B:C;2;FALSE)
A4: Ko norite ieškoti?
A5: Jei randate, iš kelinto stulpelio į dešinę norite gauti reikšmę?
A6: Kur norite ieškoti?
A7: Norite tikslios ar apytikslės reikšmės?
A8: Langelyje D22 įveskite =VLOOKUP(C22;C17:D20;2;FALSE). Teisingas atsakymas ieškant obuolių – 50. VLOOKUP ieškojo obuolių, juos rado, tada perėjo į dešinėje esantį stulpelį ir grąžino kiekį.
A9: Dabar pabandykite patys dalyje Mėsa, esančioje stulpelyje G22. Turėtumėte gauti formulę =VLOOKUP(F22;F17:G20;2;FALSE).
A10: EKSPERIMENTAS Išplečiamuosiuose sąrašuose pamėginkite pasirinkti kitus elementus. Pamatysite, kaip rezultatų langeliuose iškart atsiras naujos reikšmės.
A11: Daugiau informacijos sužinosite išanalizavę išsamiau
A12: Pirmyn
A13: VLOOKUP ir #N/A
A14: Nuolat susidursite su situacijomis, kai VLOOKUP neras to, ko prašėte, ir grąžins klaidos pranešimą (#N/A). Kartais taip yra dėl to, kad peržvalgos reikšmės tiesiog nėra arba nuorodos langelyje dar nėra reikšmės.
A15: Jei žinote, kad norima peržvalgos reikšmė yra, bet norite paslėpti klaidos pranešimą, jei peržvalgos langelis tuščias, galite naudoti IF sakinį. Tokiu atveju langelyje D43 savo esamą VLOOKUP formulę patalpinsime IF sakinyje: =IF(C43="";"";VLOOKUP(C43;C37:D41;2;FALSE)) Čia nurodoma, kad jei langelis C43 lygus niekam (""), tai nieko negrąžinti, kitu atveju grąžinti VLOOKUP rezultatus. Atkreipkite dėmesį į antrą uždarantįjį skliaustelį formulės pabaigoje. Jis uždaro IF sakinį.
A16: Jei nesate tikri, ar jūsų peržvalgos reikšmė yra, bet norite nerodyti #N/A klaidos pranešimo, langelyje G43 galite naudoti klaidų apdorojimo funkciją pavadinimu IFERROR: =IFERROR(VLOOKUP(F43;F37:G41;2;FALSE);""). IFERROR nurodo, kad jei VLOOKUP grąžina leistiną rezultatą, tada jį rodyti, priešingu atveju nieko nerodyti (""). Čia nieko neparodėme (""), tačiau taip pat galite naudoti skaičius (0, 1, 2 ir kt.) arba tekstą, pvz., „Formulė neteisinga“. | C16: Vaisiai | D16: Kiekis | F16: Mėsa | G16: Kiekis
A17: SVARBI INFORMACIJA IFERROR yra vadinamoji bendroji klaidų apdorojimo priemonė. Tai reiškia, kad ji nerodys jokios klaidos, kurią gali pateikti jūsų formulė. Tai gali sukelti problemų, jei „Excel“ pateikia pranešimą, kad jūsų formulėje yra tikra klaida, kurią reikia ištaisyti. Apskritai į formules geriausia neįtraukti klaidų apdorojimo priemonių, nebent esate visiškai tikri, kad jos veiks tinkamai. | C17: Obuoliai | D17: 50 | F17: Jautiena | G17: 50
A18: Atgal | C18: Apelsinai | D18: 20 | F18: Vištiena | G18: 30
A19: Pirmyn | C19: Bananai | D19: 60 | F19: Kiauliena | G19: 10
A20: Daugiau informacijos rasite žiniatinklyje | C20: Citrinos | D20: 40 | F20: Žuvis | G20: 50
A21: Viskas apie funkciją VLOOKUP
A22: Viskas apie funkcijas INDEX / MATCH | C22: Obuoliai | F22: Kiauliena
A23: Viskas apie funkciją IFERROR
A24: „PivotTable“ naudojimas darbalapio duomenis analizuoti
A25: Nemokamas internetinis „Excel“ mokymas
C35: Jei langelyje D42 esanti funkcija SUM galėtų prabilti, ji ištartų: Sudėkite reikšmes langeliuose D38, D39, D40 ir D41.
C36: Prekė | D36: Kiekis | F36: Prekė | G36: Kiekis
C37: Duona | D37: 50 | F37: Duona | G37: 50
C38: Spurgos | D38: 100 | F38: Spurgos | G38: 100
C39: Sausainiai | D39: 40 | F39: Sausainiai | G39: 40
C40: Tortai | D40: 50 | F40: Tortai | G40: 50
C41: Pyragai | D41: 20 | F41: Pyragai | G41: 20
D43: =VLOOKUP(C43,C37:D41,2,FALSE) ->  | F43: Kepiniai | G43: =IFERROR(VLOOKUP(F43,F37:G41,2,FALSE),"") -> 

Sheet Sąlyginės funkcijos
A1: Sąlyginės funkcijos – SUMIF
A2: Sąlyginės funkcijos leidžia gauti diapazono sumą, vidurkį, kiekį arba mažiausią arba didžiausią reikšmę, atsižvelgiant į tam tikrą jūsų nurodytą sąlygą arba kriterijus. Pavyzdžiui, kiek yra obuolių iš visų sąraše esančių vaisių? Arba kiek yra Floridos tipo apelsinų? | C2: Vaisiai | D2: Kiekis | F2: Vaisiai | G2: Tipas | H2: Kiekis | Z2: Vaisiai | AB2: Obuoliai | AD2: Apelsinai | AF2: Bananai | AH2: Citrinos
A3: SUMIF leidžia sumuoti viename diapazone, atsižvelgiant į konkrečius kriterijus, kurių ieškote kitame diapazone, pvz., kiek yra obuolių. Pažymėkite langelį D17 ir įveskite =SUMIF(C3:C14;C17;D3:D14). SUMIF struktūra yra tokia: | C3: Obuoliai | D3: 50 | F3: Obuoliai | G3: „Fuji“ | H3: 50 | Z3: Obuoliai | AB3: „Fuji“ | AD3: „Florida“ | AF3: „Cavendish“ | AH3: Raukšlėtosios
A4: =SUMIF(C3:C14;C17;D3:D14) | C4: Apelsinai | D4: 20 | F4: Apelsinai | G4: „Florida“ | H4: 20 | Z4: Apelsinai | AB4: „Honeycrisp“ | AD4: „Navel“ | AF4: „Lady Finger“ | AH4: „Eureka“
A5: Kuriame diapazone norite ieškoti? | C5: Bananai | D5: 60 | F5: Bananai | G5: „Cavendish“ | H5: 60 | Z5: Bananai
A6: Kokios reikšmės (teksto arba skaičiaus) norite ieškoti? | C6: Citrinos | D6: 40 | F6: Citrinos | G6: Raukšlėtosios | H6: 40 | Z6: Citrinos
A7: Radus kiekvieną atitikmenį, kurį diapazoną norite sumuoti? | C7: Obuoliai | D7: 50 | F7: Obuoliai | G7: „Honeycrisp“ | H7: 50
A8: SUMIFS veikia taip pat, kaip SUMIF, bet leidžia naudoti kelis kriterijus. Taigi šiame pavyzdyje užuot ieškoję tik vaisiaus, galite ieškoti vaisiaus ir tipo. Pažymėkite langelį H17 ir įveskite =SUMIFS(H3:H14;F3:F14;F17;G3:G14;G17). SUMIFS struktūra yra tokia: | C8: Apelsinai | D8: 20 | F8: Apelsinai | G8: „Navel“ | H8: 20
A9: =SUMIFS(H3:H14;F3:F14;F17;G3:G14;G17) | C9: Bananai | D9: 60 | F9: Bananai | G9: „Lady Finger“ | H9: 60
A10: Kokį diapazoną norite sumuoti? | C10: Citrinos | D10: 40 | F10: Citrinos | G10: „Eureka“ | H10: 40
A11: Tai pirmasis diapazonas, kuriame ieškoma atitikmenų | C11: Obuoliai | D11: 50 | F11: Obuoliai | G11: „Honeycrisp“ | H11: 50
A12: Tai pirmojo atitikmens kriterijai | C12: Apelsinai | D12: 20 | F12: Apelsinai | G12: „Navel“ | H12: 20
A13: Tai antrasis diapazonas, kuriame ieškoma atitikmenų | C13: Bananai | D13: 60 | F13: Bananai | G13: „Cavendish“ | H13: 60
A14: Tai antrojo atitikmens kriterijai | C14: Citrinos | D14: 40 | F14: Citrinos | G14: „Eureka“ | H14: 40
A15: SPECIALISTO PATARIMAS Kiekviename Vaisiaus ir Tipo langelyje yra išplečiamasis sąrašas, kuriame galite pasirinkti skirtingus vaisius. Pabandykite ir stebėkite, kaip formulės automatiškai atnaujinamos.
A16: Daugiau informacijos sužinosite išanalizavę išsamiau | C16: Vaisiai | D16: SUMIF | F16: Vaisiai | G16: Tipas | H16: SUMIFS
A17: Kitas veiksmas | C17: Obuoliai | F17: Apelsinai | G17: „Florida“
A18: Sąlyginės funkcijos – COUNTIF
A19: COUNTIF ir COUNTIFS leidžia suskaičiuoti diapazono reikšmes, atsižvelgiant į jūsų nustatytus kriterijus. Šios funkcijos šiek tiek skiriasi nuo kitų IF ir IFS funkcijų tuo, kad jose yra tik kriterijų diapazonas ir kriterijai. Jos nevertina vieno diapazono ir tada neperžiūri kito, kad padarytų išvadas.
A20: Pažymėkite langelį D64 ir įveskite =COUNTIF(C50:C61;C64). COUNTIF struktūra yra tokia:
A21: =COUNTIF(C50:C61;C64)
A22: Kuriame diapazone norite ieškoti?
A23: Kokios reikšmės (teksto arba skaičiaus) norite ieškoti?
A24: COUNTIFS veikia taip pat, kaip SUMIF, bet leidžia naudoti kelis kriterijus. Taigi šiame pavyzdyje užuot ieškoję tik vaisiaus, galite ieškoti vaisiaus ir tipo. Pažymėkite langelį H64 ir įveskite =COUNTIFS(F50:F61;F64;G50:G61;G64). COUNTIFS struktūra yra tokia:
A25: =COUNTIFS(F50:F61;F64;G50:G61;G64)
A26: Tai pirmasis apskaičiuotinas diapazonas
A27: Tai pirmojo atitikmens kriterijai
A28: Tai antrasis apskaičiuotinas diapazonas
A29: Tai antrojo atitikmens kriterijai
A30: Daugiau informacijos sužinosite išanalizavę išsamiau
A31: Pirmyn
A32: Daugiau sąlyginių funkcijų
A33: Jau susipažinote su SUMIF, SUMIFS, COUNTIF ir COUNTIFS. Dabar galite pabandyti patys dirbti su kitomis funkcijomis, pvz., AVERAGEIF/S, MAXIFS, MINIFS. Jos visos yra tos pačios struktūros, todėl kai jau parašyta viena formulė, galite tiesiog pakeisti jos funkcijos pavadinimą kitu. Parašėme visas funkcijas, kurių galite norėti langelyje E106, todėl galite jas nukopijuoti ir įklijuoti arba pabandyti jas įvesti patys, kad pasipraktikuotumėte. SUMIF =SUMIF(C92:C103;C106;E92:E103) SUMIFS =SUMIFS(E92:E103;C92:C103;C106;D92:D103;D106) AVERAGEIF =AVERAGEIF(C92:C103;C106;E92:E103) AVERAGEIFS =AVERAGEIFS(E92:E103;C92:C103;C106;D92:D92;D106) COUNTIF =COUNTIF(C92:C103;C106) COUNTIFS =COUNTIFS(C92:C103;C106;D92:D103;D106) MAXIFS =MAXIFS(E92:E103;C92:C103;C10;D92:D103;D106) MINIFS =MINIFS(E92:E103;C92:C103;C106;D92:D103;D106)
A34: Daugiau informacijos sužinosite išanalizavę išsamiau
A35: Pirmyn
A36: SUMIF su reikšmės argumentu
A37: Štai SUMIF funkcijos pavyzdys, kurioje naudojama „daugiau nei“ (>), kad būtų surastos visos reikšmės, didesnės nei nustatytas kiekis:
A38: =SUMIF(D118:D122,">=50") -> 200
A39: Sudėkite daugiau reikšmių pagal šį kriterijų:
A40: ... Peržiūrėkite šiuos langelius...
A41: ...jei reikšmė yra didesnė nei 50, sudėkite.
A42: PASTABA. Jei kuriate daug sąlyginių formulių, galbūt verta naudoti geresnį sprendimą – „PivotTable“. Daugiau informacijos rasite peržiūrėję šį „PivotTable“ straipsnį.
A43: Daugiau informacijos rasite žiniatinklyje
A44: Viskas apie funkciją SUMIF
A45: Viskas apie funkciją SUMIFS
A46: Viskas apie funkciją COUNTIF
A47: Viskas apie funkciją COUNTIFS
A48: Viskas apie funkciją AVERAGEIF
A49: Viskas apie funkciją AVERAGEIFS | C49: Vaisiai | D49: Kiekis | F49: Vaisiai | G49: Tipas | H49: Kiekis
A50: Viskas apie funkciją MINIFS | C50: Obuoliai | D50: 50 | F50: Obuoliai | G50: „Fuji“ | H50: 50
A51: Viskas apie funkciją MAXIFS | C51: Apelsinai | D51: 20 | F51: Apelsinai | G51: „Florida“ | H51: 20
A52: Išplečiamojo sąrašo kūrimas | C52: Bananai | D52: 60 | F52: Bananai | G52: „Cavendish“ | H52: 60
A53: Nemokamas internetinis „Excel“ mokymas | C53: Citrinos | D53: 40 | F53: Citrinos | G53: Raukšlėtosios | H53: 40
A54: Atgal į viršų | C54: Obuoliai | D54: 50 | F54: Obuoliai | G54: „Honeycrisp“ | H54: 50
A55: Pirmyn | C55: Apelsinai | D55: 20 | F55: Apelsinai | G55: „Navel“ | H55: 20
C56: Bananai | D56: 60 | F56: Bananai | G56: „Lady Finger“ | H56: 60
C57: Citrinos | D57: 40 | F57: Citrinos | G57: „Eureka“ | H57: 40
C58: Obuoliai | D58: 50 | F58: Obuoliai | G58: „Honeycrisp“ | H58: 50
C59: Apelsinai | D59: 20 | F59: Apelsinai | G59: „Navel“ | H59: 20
C60: Bananai | D60: 60 | F60: Bananai | G60: „Cavendish“ | H60: 60
C61: Citrinos | D61: 40 | F61: Citrinos | G61: „Eureka“ | H61: 40
C63: Vaisiai | D63: COUNTIF | F63: Vaisiai | G63: Tipas | H63: COUNTIFS
C64: Obuoliai | D64: =COUNTIF(C50:C61,C64) -> 3 | F64: Apelsinai | G64: „Florida“ | H64: =COUNTIFS(F50:F61,F64,G50:G61,G64) -> 1
C91: Vaisiai | D91: Tipas | E91: Kiekis
C92: Obuoliai | D92: „Fuji“ | E92: 50
C93: Apelsinai | D93: „Florida“ | E93: 20
C94: Bananai | D94: „Cavendish“ | E94: 60
C95: Citrinos | D95: Raukšlėtosios | E95: 40
C96: Obuoliai | D96: „Honeycrisp“ | E96: 50
C97: Apelsinai | D97: „Navel“ | E97: 20
C98: Bananai | D98: „Lady Finger“ | E98: 60
C99: Citrinos | D99: „Eureka“ | E99: 40
C100: Obuoliai | D100: „Honeycrisp“ | E100: 50
C101: Apelsinai | D101: „Navel“ | E101: 20
C102: Bananai | D102: „Cavendish“ | E102: 60
C103: Citrinos | D103: „Eureka“ | E103: 40
C105: Vaisiai | D105: Tipas | E105: Pabandykite
C106: Citrinos | D106: „Eureka“ | E106: =AVERAGEIFS(E92:E103,C92:C103,C106,D92:D103,D106) -> 40
C117: Prekė | D117: Kiekis
C118: Duona | D118: 50
C119: Spurgos | D119: 100
C120: Sausainiai | D120: 40
C121: Tortai | D121: 50
C122: Pyragai | D122: 20
D123: =SUMIF(D118:D122,">=50") -> 200

Sheet Funkcijų vedlys
A1: Tegu funkcijų vedlys jus veda
A2: Jei žinote norimos funkcijos pavadinimą, bet nesate tikri, kaip ją sukurti, jums padės funkcijų vedlys.
A3: Pažymėkite langelį D10, tada eikite į Formulės > Įterpti funkciją > laukelyje Ieškoti funkcijos įveskite VLOOKUP ir paspauskite Vykdyti. Pamatę pažymėtą VLOOKUP, apačioje spustelėkite Gerai. Iš sąrašo pasirinkus funkciją, „Excel“ parodys jos sintaksę.
A4: Tada įveskite argumentus atitinkamuose teksto laukuose. Jums įvedant kiekvieną argumentą, „Excel“ jį įvertins ir pateiks rezultatą, o galutinis rezultatas bus apačioje. Pereinant į kiekvieną sekciją, kiekvieno argumento kriterijai pateikiami formos apačioje. Baigę spustelėkite Gerai ir „Excel“ už jus įves formulę. | C4: Vaisiai | D4: Kiekis
A5: PERŽIŪRĖKITE TAI Turėtumėte gauti formulę =VLOOKUP(C10;C5:D8;2;FALSE) | C5: Obuoliai | D5: 50
A6: NAUDINGA ŽINOTI Galite įvesti langelių ir diapazonų koordinates arba juos pažymėti pele. | C6: Apelsinai | D6: 20
A7: NAUDINGA ŽINOTI Pereinant į kiekvieno argumento sekciją, argumento aprašas rodomas formos apačioje, virš formulės rezultato. | C7: Bananai | D7: 60
A8: Atgal | C8: Citrinos | D8: 40
A9: Pirmyn
A10: Daugiau informacijos rasite žiniatinklyje | C10: Obuoliai | D10: =VLOOKUP(C10,C5:D8,2,FALSE) -> 50
A11: „Excel“ formulių apžvalga
A12: „Excel“ funkcijos (pagal kategoriją)
A13: „Excel“ funkcijos (pagal abėcėlę)
A14: Nemokamas internetinis „Excel“ mokymas

Sheet Formulių klaidos
A1: Formulių klaidų taisymas
A2: Anksčiau ar vėliau susidursite su formule, kurioje yra klaida. „Excel“ tą klaidą rodys kaip #ErrorName. Klaidos gali būti naudinga, nes jos nurodo, kad kažkas neveikia, bet ištaisyti jas gali būti sudėtinga. Laimei, yra keletas būdų, galinčių padėti rasti klaidos šaltinį ir klaidą ištaisyti.
A3: Klaidų tikrinimas. Eikite į Formulės > Klaidų tikrinimas. Bus atidarytas dialogo langas, kuris nurodys jūsų konkrečios klaidos bendrą priežastį. Langelyje D9 klaida #N/A įvyko, nes nėra reikšmės, atitinkančios reikšmę „Obuolys“. Klaidą galite ištaisyti, jei naudosite esamą reikšmę, nerodysite klaidos naudodami IFERROR arba jos nepaisysite žinodami, kad ji išnyks, kai naudosite esamą reikšmę. | C3: Vaisiai | D3: Suma
A4: Jei spustelėsite Paaiškinimas apie šią klaidą, bus atidaryta žinyno tema, aprašanti šį klaidos pranešimą. Jei spustelėsite Rodyti skaičiavimo veiksmus, bus atidarytas dialogo langas Formulės vertinimas. | C4: Obuoliai | D4: 50
A5: Kaskart paspaudus Vertinti, „Excel“ peržiūrės kiekvieną formulės sekciją. Programa nebūtinai nurodys, kodėl įvyko klaida, bet parodys, kur. Tada peržiūrėkite žinyno temą, kad nustatytumėte, kas nutiko su formule. | C5: Apelsinai | D5: 20
A6: EKSPERIMENTAS Kas čia negerai? Užuomina. Bandome susumuoti visus elementus. | C6: Bananai | D6: 60
A7: NAUDINGA ŽINOTI Spustelėję Parinktys galėsite nustatyti taisykles, nurodančias, kada „Excel“ turėtų klaidas rodyti arba jų nepaisyti. | C7: Citrinos | D7: 40
A8: Atgal
A9: Pirmyn | C9: Obuolys | D9: =VLOOKUP(C9,C3:D7,2,FALSE) -> 
A10: Daugiau informacijos rasite žiniatinklyje
A11: Klaidų formulėse aptikimas
A12: Kaip išvengti neveikiančių formulių
A13: Įdėtosios formulės vertinimas žingsnis po žingsnio
A14: Nemokamas internetinis „Excel“ mokymas
C30: Vaisiai | D30: Kiekis
C31: Obuoliai | D31: 50
C32: Apelsinai | D32: 20
C33: Bananai | D33: 60
C34: Citrinos | D34: 40
C36: Iš viso | D36: =sume(D31:D34) -> 

Sheet Sužinokite daugiau
A1: Turite daugiau klausimų apie „Excel“?
A2: Paspauskite ALT + Q ir įveskite tai, ką norite sužinoti.
A3: Tęskite toliau. Yra daugybė dalykų, kuriuos galite išmokti naudodami „Excel“:
A4: Bendruomenė: Užduokite klausimus ir bendraukite su mėgstančiais „Excel“.
A5: Kas dar naujo? „Office 365“ prenumeratoriai gauna nuolatinius naujinimus ir naujas funkcijas.
